bitfinex-derivatives/quotes_ETHF0:USTF0_20250327
["timestamp","ask_amount","ask_price","bid_price","bid_amount"]
[1743094685029,1.00645645,2002.4,2002.3,1.70943]
[1743094685626,0.00747645,2002.4,2002.3,1.70943]
[1743094691030,2.36805645,2002.4,2002.3,7.66143]
[1743094691434,2.36805645,2002.4,2002.3,6.95103]
[1743094692038,2.36805645,2002.4,2002.3,5.952]
[1743094692238,2.36805645,2002.4,2002.3,6.95103]
[1743094692433,2.36805645,2002.4,2002.3,8.35483]
[1743094693128,5.57585645,2002.4,2002.3,5.952]
[1743094693332,0.99908,2002.2,2002.1,3.2078]
[1743094694541,0.99908,2002.2,2002.1,5.61073]
[1743094695439,1.3144,2002.3,2002.2,0.99908]
[1743094695440,2.31346,2002.3,2002.2,0.99908]
[1743094695640,2.31346,2002.3,2002.2,3.01408]
[1743094696336,2.31346,2002.3,2002.2,3.66588]
[1743094697537,1.3144,2002.3,2002.2,3.66588]
[1743094697738,2.31343,2002.3,2002.2,3.66588]
[1743094700741,1.3144,2002.3,2001.8,6.9928]
[1743094700944,0.99915,2002.1,2001.9,1.316]
[1743094701339,0.99915,2002.1,2002.0,0.99918]
[1743094701547,0.99915,2002.1,2001.9,2.31518]
[1743094701740,0.99918,2002.0,2001.9,1.316]
[1743094701940,0.99918,2002.0,2001.9,2.3152]
[1743094702239,0.99918,2002.0,2001.9,2.668]
[1743094702445,0.99918,2002.0,2001.9,2.014]
[1743094702646,0.99923,2001.9,2001.8,3.2078]
[1743094702846,3.05853,2001.9,2001.8,3.2078]
[1743094703940,0.99928,2001.8,2001.7,2.6738]
[1743094704241,2.39948,2001.8,2001.7,2.6738]
[1743094705335,2.39948,2001.8,2001.7,3.67313]
[1743094705542,2.39948,2001.8,2001.7,2.6738]
[1743094705945,2.39948,2001.8,2001.7,3.67313]
[1743094707043,2.39948,2001.8,2001.7,2.6738]
[1743094707947,2.39948,2001.8,2001.7,2.014]
[1743094709449,0.99933,2001.7,2001.6,3.2078]
[1743094709647,2.38713,2001.7,2001.6,3.2078]
[1743094710036,2.38713,2001.7,2001.6,5.52868]
[1743094711545,2.38713,2001.7,2001.6,4.5293]
[1743094711742,2.38713,2001.7,2001.6,3.2078]
[1743094712746,1.3878,2001.7,2001.5,5.1952]
[1743094712944,1.3878,2001.7,2001.6,5.61738]
[1743094713145,2.38713,2001.7,2001.6,5.61738]
[1743094713448,2.38713,2001.7,2001.6,4.618]
[1743094713647,2.38713,2001.7,2001.6,3.2078]
[1743094714348,0.99944,2001.6,2001.5,3.2078]
[1743094714543,2.33574,2001.6,2001.5,3.2078]
[1743094715048,2.33574,2001.6,2001.5,4.20718]
[1743094716145,2.33574,2001.6,2001.5,5.61888]
[1743094716950,2.33574,2001.6,2001.5,4.6195]
[1743094717141,2.33574,2001.6,2001.5,5.61893]
[1743094717341,1.3363,2001.6,2001.5,5.61893]
[1743094717542,2.33568,2001.6,2001.5,5.61893]
[1743094717744,1.3363,2001.6,2001.5,5.61893]
[1743094717946,0.99929,2001.8,2001.7,0.99928]
[1743094718141,0.99933,2001.7,2001.6,2.35203]
[1743094718538,2.4132,2001.8,2001.7,0.99933]
[1743094718749,2.4132,2001.8,2001.7,2.35203]
[1743094720244,19.43729338,2001.9,2001.8,0.99928]
[1743094720452,21.83547338,2001.9,2001.8,3.13428]
[1743094721052,19.43729338,2001.9,2001.8,6.34208]
[1743094722252,20.43652338,2001.9,2001.8,6.34208]
[1743094722551,21.86812338,2001.9,2001.8,6.34208]
[1743094722747,2.43083,2001.9,2001.8,4.20708]
[1743094723351,2.43083,2001.9,2001.8,5.52538]
[1743094725342,2.43083,2001.9,2001.8,3.2078]
[1743094725547,3.09603,2001.9,2001.8,3.2078]
[1743094725950,3.09603,2001.9,2001.8,4.20708]
[1743094726141,3.09603,2001.9,2001.8,3.2078]
[1743094726643,2.43083,2001.9,2001.8,4.20708]
[1743094726845,2.43083,2001.9,2001.8,4.606]
[1743094728250,2.43083,2001.9,2001.8,3.2078]
[1743094730956,0.99933,2001.7,2001.6,2.1105]
[1743094731148,0.99933,2001.7,2001.6,3.10988]
[1743094734454,2.30132,2001.8,2001.7,0.99933]
[1743094734657,2.30132,2001.8,2001.7,2.33913]
[1743094735250,2.30132,2001.8,2001.7,1.3398]
[1743094735754,2.30132,2001.8,2001.7,2.33913]
[1743094739053,0.99932,2001.8,2001.7,2.33913]
[1743094741759,0.99932,2001.8,2001.7,1.3398]
[1743094742459,2.40562,2001.8,2001.7,1.3398]
[1743094742654,2.40562,2001.8,2001.7,2.33913]
[1743094743158,2.40562,2001.8,2001.7,1.3398]
[1743094743361,0.99933,2001.7,2001.6,0.6962]
[1743094743562,2.40563,2001.7,2001.6,2.0238]
[1743094743763,2.40563,2001.7,2001.6,1.3276]
[1743094744063,0.99938,2001.6,2001.5,4.9065]
[1743094744265,2.39558,2001.6,2001.5,4.9065]
[1743094744656,2.39558,2001.6,2001.5,6.3271]
[1743094748168,1.3962,2001.6,2001.5,6.3271]
[1743094748360,0.99933,2001.8,2001.7,0.99929]
[1743094748559,0.99937,2001.7,2001.6,0.99933]
[1743094749568,0.99937,2001.7,2001.6,2.35643]
[1743094755672,0.99938,2001.6,2001.5,4.20723]
[1743094755867,2.34078,2001.6,2001.5,5.51793]
[1743094756668,5.70565,2002.1,2001.6,2.49845]
[1743094756870,2.3725,2002.0,2001.9,0.99923]
[1743094757081,2.3725,2002.0,2001.9,3.03963]
[1743094757271,2.3725,2002.0,2001.9,2.0404]
[1743094758379,2.49809,2001.9,2001.6,0.9993]
[1743094758578,0.99933,2001.8,2001.7,0.99929]
[1743094758784,2.37263,2001.8,2001.7,2.32049]
[1743094759075,2.37263,2001.8,2001.7,1.3212]
[1743094759674,2.37263,2001.8,2001.7,2.32053]
[1743094759873,0.99927,2001.9,2001.8,0.99928]
[1743094760077,0.99927,2001.9,2001.8,2.40638]
[1743094760567,0.99927,2001.9,2001.3,4.99749]
[1743094760568,0.9996,2001.3,2001.2,3.2078]
[1743094761479,2.432,2001.3,2001.2,4.20738]
[1743094761973,2.432,2001.3,2001.2,3.2078]
[1743094762182,2.432,2001.3,2001.2,4.20738]
[1743094764783,2.432,2001.3,2001.2,3.2078]
[1743094764982,2.432,2001.3,2001.2,4.20738]
[1743094765182,2.432,2001.3,2001.2,5.59648]
[1743094767478,2.432,2001.3,2001.2,4.5969]
[1743094768278,2.432,2001.3,2001.2,3.2078]
[1743094768478,2.432,2001.3,2001.2,4.20738]
[1743094769081,2.432,2001.3,2001.2,0.99958]
[1743094769280,1.4324,2001.3,2001.2,0.99958]
[1743094769479,19.48713885,2001.4,2001.3,0.99953]
[1743094769684,20.48661885,2001.4,2001.3,4.20733]
[1743094770380,20.48661885,2001.4,2001.3,4.88763]
[1743094772097,19.48713885,2001.4,2001.3,4.88763]
[1743094772483,20.48661885,2001.4,2001.3,4.88763]
[1743094772693,20.82933885,2001.4,2001.3,4.88763]
[1743094772888,21.82881885,2001.4,2001.3,4.88763]
[1743094773396,21.82881885,2001.4,2001.0,7.6477]
[1743094773397,20.82933885,2001.4,2001.0,7.6477]
[1743094773595,0.99961,2001.2,2001.1,0.99959]
[1743094773787,0.99961,2001.2,2001.1,2.39869]
[1743094773987,2.34181,2001.2,2001.1,2.39869]
[1743094774187,1.3422,2001.2,2001.1,2.39869]
[1743094774682,2.34178,2001.2,2001.1,2.39869]
[1743094774882,1.3422,2001.2,2001.1,2.39869]
[1743094775489,2.34178,2001.2,2001.1,2.39869]
[1743094776089,1.3422,2001.2,2001.1,2.39869]
[1743094777293,2.34178,2001.2,2001.1,2.39869]
[1743094777796,1.3422,2001.2,2001.1,2.39869]
[1743094778396,19.49463417,2001.4,2001.3,0.99953]
[1743094778595,19.49463417,2001.4,2001.3,4.20733]
[1743094778991,19.49463417,2001.4,2001.3,5.62493]
[1743094779689,19.49463417,2001.4,2001.3,9.40993]
[1743094781185,0.00749532,2001.4,2001.3,9.40993]
[1743094787097,1.33529532,2001.4,2001.3,9.40993]
[1743094787689,2.33477532,2001.4,2001.3,9.40993]
[1743094787892,1.33529532,2001.4,2001.3,9.40993]
[1743094790494,1.33529532,2001.4,2001.3,5.62493]
[1743094793304,2.33477532,2001.4,2001.3,5.62493]
[1743094793802,1.33529532,2001.4,2001.3,5.62493]
[1743094794402,0.00749532,2001.4,2001.3,5.62493]
[1743094795100,19.48713885,2001.9,2001.8,0.99928]
[1743094795296,20.48638885,2001.9,2001.8,0.99928]
[1743094795704,20.48638885,2001.9,2001.8,2.43478]
[1743094795903,21.85288885,2001.9,2001.8,2.43478]
[1743094797998,21.85288885,2001.9,2001.8,1.4355]
[1743094798197,21.85288885,2001.9,2001.8,2.43478]
[1743094798395,21.85288885,2001.9,2001.8,0.99928]
[1743094798796,0.99928,2001.8,2001.7,5.59688]
[1743094798996,2.40598,2001.8,2001.7,5.59688]
[1743094799301,2.40598,2001.8,2001.7,4.20713]
[1743094800000,2.40598,2001.8,2001.7,3.2078]
[1743094800200,2.40598,2001.8,2001.7,4.20713]
[1743094800595,1.4067,2001.8,2001.7,4.20713]
[1743094800795,1.4067,2001.8,2001.7,5.59693]
[1743094801504,2.40598,2001.8,2001.7,5.59693]
[1743094801899,3.09308,2001.8,2001.7,5.59693]
[1743094802201,3.09308,2001.8,2001.7,4.5976]
[1743094802408,3.09308,2001.8,2001.7,3.2078]
[1743094805602,19.48713885,2001.9,2001.8,0.99928]
[1743094805803,21.89686885,2001.9,2001.8,1.69938]
[1743094806104,21.89686885,2001.9,2001.8,3.07638]
[1743094806502,20.89763885,2001.9,2001.8,3.07638]
[1743094806703,19.48713885,2001.9,2001.8,3.07638]
[1743094806899,16.23936352,2001.9,2001.8,9.36138]
[1743094807096,0.00749532,2002.1,2002.0,0.99918]
[1743094807301,1.4105,2002.4,2002.3,0.99903]
[1743094807600,2.40948,2002.4,2002.3,3.2078]
[1743094807807,2.0897,2002.4,2002.0,3.2078]
[1743094807998,0.99913,2002.1,2002.0,3.2078]
[1743094808197,1.3329,2002.3,2002.0,3.2078]
[1743094808198,0.9991,2002.2,2002.1,0.99911]
[1743094808397,0.99913,2002.1,2002.0,4.20694]
[1743094808606,0.99911,2002.2,2002.1,0.99912]
[1743094808797,1.34039532,2002.3,2002.2,0.99908]
[1743094808999,0.00749532,2002.3,2002.2,0.99908]
[1743094810403,1.00652532,2002.3,2002.2,0.99908]
[1743094810598,0.99908,2002.2,2002.1,5.49609]
[1743094810796,1.00655532,2002.3,2002.1,5.49609]
[1743094811002,0.00749532,2002.3,2002.1,5.49609]
[1743094811205,0.99908,2002.2,2002.1,4.497]
[1743094811403,1.00656532,2002.3,2002.1,5.49608]
[1743094811604,1.00656532,2002.3,2002.2,0.99908]
[1743094812302,1.00656532,2002.3,2002.1,5.49609]
[1743094812303,0.99908,2002.2,2002.1,5.49609]
[1743094812810,1.00653532,2002.3,2002.2,0.99908]
[1743094813404,0.00749532,2002.3,2002.2,0.99908]
[1743094813601,0.00749532,2002.3,2002.2,2.37328]
[1743094814006,22.12088428,2002.7,2002.6,0.99888]
[1743094814306,21.12202428,2002.7,2002.6,0.99888]
[1743094815907,0.99882,2002.8,2002.7,0.99883]
[1743094817307,38.90626532,2002.9,2002.8,0.99878]
[1743094819113,1.00626532,2002.9,2002.8,0.99878]
[1743094819316,0.99883,2002.8,2002.7,0.9988]
[1743094819819,0.99883,2002.7,2002.6,0.00749532]
[1743094820414,1.69553,2002.7,2002.6,0.00749532]
[1743094821320,1.69553,2002.7,2002.6,1.00637532]
[1743094821710,2.31283,2002.7,2002.6,1.00637532]
[1743094822021,1.314,2002.7,2002.6,1.00637532]
[1743094822214,1.314,2002.7,2002.6,2.39137532]
[1743094822712,2.31283,2002.7,2002.6,2.39137532]
[1743094823317,2.31283,2002.7,2002.6,3.09517532]
[1743094828116,1.314,2002.7,2002.6,3.09517532]
[1743094828317,2.31283,2002.7,2002.6,3.09517532]
[1743094828724,1.314,2002.7,2002.6,3.09517532]
[1743094829023,2.31283,2002.7,2002.6,1.71017532]
[1743094829613,1.314,2002.7,2002.6,1.71017532]
[1743094829919,1.314,2002.7,2002.6,3.15157532]
[1743094830222,2.31283,2002.7,2002.6,3.15157532]
[1743094832528,0.99898,2002.4,2002.3,0.6832]
[1743094833024,0.99898,2002.4,2002.3,1.3794]
[1743094833223,0.99898,2002.4,2002.3,2.37843]
[1743094833426,0.99898,2002.4,2002.3,1.3794]
[1743094833723,0.99898,2002.4,2002.3,2.37843]
[1743094833930,1.3709,2002.5,2002.4,0.99898]
[1743094834130,2.36983,2002.5,2002.4,0.99898]
[1743094834324,1.3709,2002.5,2002.4,0.99898]
[1743094834516,1.00625532,2002.9,2002.4,1.4121]
[1743094834720,2.36968,2002.8,2002.7,0.99883]
[1743094834920,1.3709,2002.8,2002.7,3.08973]
[1743094837124,0.00749532,2002.9,2002.8,0.99878]
[1743094837320,0.00749532,2002.9,2002.8,5.57778]
[1743094837520,1.3483,2003.1,2003.0,0.99868]
[1743094838433,0.99854,2003.3,2003.2,0.99851]
[1743094838628,2.39213532,2003.3,2003.2,0.99851]
[1743094839225,1.39359532,2003.3,2003.2,0.99851]
[1743094839431,2.39212532,2003.3,2003.2,0.99851]
[1743094841126,0.99858,2003.2,2003.1,4.86259]
[1743094841325,2.98768,2003.2,2003.1,3.2078]
[1743094841524,2.98768,2003.2,2003.1,4.20643]
[1743094843036,2.31708,2003.2,2003.1,4.20643]
[1743094843730,1.3185,2003.2,2003.1,4.20643]
[1743094845228,0.00749532,2003.3,2003.2,0.99858]
[1743094850443,3.21529532,2003.3,2003.0,0.00749532]
[1743094850738,0.99893,2002.5,2002.4,7.99174]
[1743094850934,0.99893,2002.5,2002.4,3.2078]
[1743094851136,0.99891,2002.6,2002.5,0.99891]
[1743094851332,0.99891,2002.6,2002.4,4.20674]
[1743094851333,0.99893,2002.5,2002.4,4.20674]
[1743094851634,0.99893,2002.5,2002.4,3.2078]
[1743094851830,0.99908,2002.2,2002.1,0.6835]
[1743094852736,0.99908,2002.2,2002.1,1.68263]
[1743094853339,0.99918,2002.0,2001.9,1.00671532]
[1743094853535,0.99918,2002.0,2001.9,0.00749532]
[1743094853734,0.99918,2002.0,2001.9,1.00672532]
[1743094854146,2.44136,2002.1,2002.0,0.99918]
[1743094854334,2.44136,2002.1,2001.9,1.00667532]
[1743094854335,0.99918,2002.0,2001.9,1.00667532]
[1743094854543,1.4422,2002.0,2001.9,1.00667532]
[1743094855241,1.4422,2002.0,2001.9,2.40607532]
[1743094855735,0.00749532,2002.2,2002.1,0.99913]
[1743094855937,0.00749532,2002.2,2002.1,4.20693]
[1743094856836,0.00749532,2002.2,2002.1,5.57633]
[1743094857738,1.4066,2002.5,2002.4,0.99898]
[1743094858040,1.4066,2002.5,2002.4,4.20678]
[1743094858734,1.4066,2002.5,2002.4,4.89228]
[1743094859734,1.4066,2002.5,2002.4,3.8933]
[1743094859940,1.4066,2002.5,2002.1,6.9928]
[1743094859941,0.99908,2002.2,2002.1,6.9928]
[1743094860135,0.99908,2002.2,2002.1,7.99193]
[1743094860536,0.99908,2002.2,2002.1,3.2078]
[1743094861545,0.99908,2002.2,2002.1,4.20693]
[1743094861943,0.99908,2002.2,2002.1,3.2078]
[1743094863848,2.36725,2002.3,2002.2,0.99908]
[1743094865147,1.3682,2002.3,2002.2,0.99908]
[1743094865338,1.3682,2002.3,2002.2,2.39168]
[1743094866347,0.00749532,2002.7,2002.6,0.99888]
[1743094866643,1.00632532,2002.7,2002.6,4.20668]
[1743094866843,0.00749532,2002.7,2002.6,4.20668]
[1743094867241,1.00632532,2002.7,2002.6,4.20668]
[1743094868644,1.00632532,2002.7,2002.4,2.49736]
[1743094868645,0.99908,2002.2,2002.1,0.9991]
[1743094868851,0.99918,2002.1,2002.0,0.99915]
[1743094869053,2.41778,2002.1,2002.0,0.99915]
[1743094870650,1.4186,2002.1,2002.0,0.99915]
[1743094870948,1.4186,2002.1,2002.0,2.39045]
[1743094871145,3.2078,2002.5,2002.1,2.49773]
[1743094871449,0.99903,2002.3,2002.2,0.99904]
[1743094872951,1.3514,2002.4,2002.3,0.99903]
[1743094873151,2.35038,2002.4,2002.3,1.71063]
[1743094873342,1.3514,2002.4,2002.3,3.12953]
[1743094874263,1.3514,2002.4,2002.3,1.71063]
[1743094874449,2.35038,2002.4,2002.3,1.71063]
[1743094875955,1.3514,2002.4,2002.3,1.71063]
[1743094876146,1.3514,2002.4,2002.3,3.14173]
[1743094876642,0.00749532,2002.7,2002.6,0.99888]
[1743094876847,1.36479532,2002.7,2002.6,4.20668]
[1743094877048,0.00749532,2002.7,2002.6,4.20668]
[1743094877642,0.00749532,2002.7,2002.6,7.99168]
[1743094877846,1.4302,2003.0,2002.9,0.99873]
[1743094878047,1.4302,2003.0,2002.9,4.20653]
[1743094878646,1.4302,2003.0,2002.9,5.64873]
[1743094879352,0.00749532,2003.2,2003.1,0.99863]
[1743094879655,1.43769532,2003.2,2003.1,0.99863]
[1743094879852,0.99835,2003.7,2003.0,3.785]
[1743094880049,1.4302,2003.5,2003.4,4.20628]
[1743094880551,2.42863,2003.5,2003.4,4.20628]
[1743094880746,1.4302,2003.5,2003.4,4.20628]
[1743094880943,1.4302,2003.5,2003.3,0.7037]
[1743094881249,1.4302,2003.5,2003.4,0.99848]
[1743094881450,1.4302,2003.5,2003.4,2.32278]
[1743094881651,2.42863,2003.5,2003.4,2.32278]
[1743094881847,2.42863,2003.5,2003.4,0.99848]
[1743094882251,1.4302,2003.5,2003.4,0.99848]
[1743094882452,1.4302,2003.5,2003.4,2.32278]
[1743094883647,2.42863,2003.5,2003.4,2.32278]
[1743094883856,2.42863,2003.5,2003.4,0.99848]
[1743094884157,1.4302,2003.5,2003.4,0.99848]
[1743094884663,2.42863,2003.5,2003.4,0.99848]
[1743094885252,0.99848,2003.4,2003.3,0.7037]
[1743094885449,0.99848,2003.4,2002.9,1.00618532]
[1743094885450,2.49641,2003.3,2002.9,1.00618532]
[1743094885646,0.99868,2003.0,2002.9,0.00749532]
[1743094886254,38.89868,2003.0,2002.9,0.00749532]
[1743094886558,38.89868,2003.0,2002.9,1.00622532]
[1743094887256,0.99868,2003.0,2002.9,1.00622532]
[1743094887461,0.99868,2003.0,2002.9,0.00749532]
[1743094887852,2.49684,2002.9,2002.6,0.99883]
[1743094888052,0.99887,2002.7,2002.6,0.99883]
[1743094888658,0.99891,2002.6,2002.5,0.99887]
[1743094889657,5.70493,2002.7,2002.3,0.00749532]
[1743094889959,0.99898,2002.4,2002.3,1.00647532]
[1743094890748,0.99898,2002.4,2002.3,0.00749532]
[1743094891360,4.20678,2002.4,2002.3,0.00749532]
[1743094891759,0.99913,2002.1,2002.0,0.6946]
[1743094891960,0.99913,2002.1,2002.0,1.69378]
[1743094892257,0.99913,2002.1,2002.0,0.6946]
[1743094893059,1.329,2002.3,2002.0,0.6946]
[1743094893250,0.9991,2002.2,2002.1,0.99913]
[1743094893459,2.32806,2002.3,2002.2,0.99908]
[1743094893763,0.99906,2002.3,2002.2,0.99908]
[1743094893960,3.2078,2002.4,2002.1,0.99909]
[1743094893961,0.99912,2002.2,2002.1,0.99909]
[1743094894157,5.70527,2002.4,2002.0,1.3888]
[1743094894158,0.99913,2002.1,2002.0,1.3888]
[1743094895064,0.99923,2001.9,2001.8,0.00749532]
[1743094895263,0.99923,2001.9,2001.8,1.00673532]
[1743094896160,0.99921,2002.0,2001.9,0.99921]
[1743094896758,3.2078,2002.1,2001.8,0.00749532]
[1743094896759,0.99923,2001.9,2001.8,1.00674532]
[1743094897358,0.99922,2002.0,2001.9,0.99921]
[1743094897662,0.99919,2002.0,2001.9,0.99918]
[1743094897863,4.20697,2002.1,2002.0,0.99918]
[1743094898067,3.2078,2002.1,2002.0,0.99918]
[1743094898960,0.99918,2002.0,2001.9,3.04349]
[1743094899757,4.20696,2002.1,2002.0,0.99918]
[1743094899964,3.2078,2002.1,2002.0,0.99918]
[1743094900363,3.2078,2002.1,2002.0,3.11128]
[1743094900667,4.20693,2002.1,2002.0,1.71298]
[1743094902354,3.2078,2002.1,2002.0,1.71298]
[1743094902565,3.2078,2002.1,2002.0,3.12478]
[1743094903670,4.20679,2002.4,2002.3,0.99903]
[1743094903968,3.2078,2002.4,2002.3,0.99903]
[1743094904571,1.00634532,2002.7,2002.6,0.99888]
[1743094904768,0.00749532,2002.7,2002.6,0.99888]
[1743094904968,1.00632532,2002.7,2002.6,0.99888]
[1743094905270,0.00749532,2002.7,2002.6,0.99888]
[1743094905470,1.00632532,2002.7,2002.6,0.99888]
[1743094907364,0.00749532,2002.7,2002.6,0.99888]
[1743094907572,0.00749532,2002.7,2002.6,2.30648]
[1743094907765,0.99869,2003.0,2002.9,0.99868]
[1743094909871,0.99867,2003.1,2003.0,0.99865]
[1743094910771,0.99872,2003.0,2002.9,0.99869]
[1743094912575,4.20652,2003.0,2002.9,0.99869]
[1743094914067,3.2078,2003.0,2002.9,0.99869]
[1743094914276,1.3167,2003.1,2003.0,0.99868]
[1743094915270,2.31533,2003.1,2003.0,0.99868]
[1743094916575,2.31533,2003.1,2003.0,2.39998]
[1743094917580,0.99868,2003.0,2002.9,1.64931]
[1743094917778,2.30318,2003.0,2002.9,3.05851]
[1743094917979,2.30318,2003.0,2002.9,1.64931]
[1743094918477,2.30318,2003.0,2002.9,0.6506]
[1743094918777,0.99873,2002.9,2002.8,0.00749532]
[1743094918977,2.30323,2002.9,2002.8,0.00749532]
[1743094920780,2.30323,2002.9,2002.8,1.00627532]
[1743094922192,1.3045,2002.9,2002.8,1.00627532]
[1743094922372,19.43041572,2003.2,2003.1,0.99863]
[1743094922572,20.42899572,2003.2,2003.1,0.99863]
[1743094922776,19.43041572,2003.2,2003.1,0.99863]
[1743094923574,19.4229204,2003.6,2003.5,0.99843]
[1743094923781,20.7578204,2003.6,2003.5,0.99843]
[1743094923972,21.7562004,2003.6,2003.5,0.99843]
[1743094924178,0.99858,2003.2,2003.1,4.78359]
[1743094924580,0.99863,2003.1,2002.9,3.73848]
[1743094924771,0.99868,2003.0,2002.9,0.6561]
[1743094925174,0.99873,2002.9,2002.8,0.00749532]
[1743094925978,0.99892,2002.6,2002.4,2.7398]
[1743094926283,4.20661,2002.8,2002.7,0.99883]
[1743094926777,0.99884,2002.7,2002.6,0.99883]
[1743094926984,4.2066,2002.8,2002.7,0.99883]
[1743094927181,0.99885,2002.7,2002.6,0.99884]
[1743094929274,3.2078,2002.8,2002.7,0.99883]
[1743094929476,4.20658,2002.8,2002.7,0.99883]
[1743094930086,3.2078,2002.8,2002.7,0.99883]
[1743094930384,3.2078,2003.2,2003.0,0.99863]
[1743094930589,0.99865,2003.1,2003.0,0.99863]
[1743094930888,0.00749532,2003.4,2003.3,0.99853]
[1743094931080,0.00749532,2003.4,2003.3,4.20633]
[1743094931686,0.00749532,2003.4,2003.3,5.56233]
[1743094931886,0.6818,2004.1,2003.5,0.99843]
[1743094932089,16.20762508,2003.6,2003.5,4.78343]
[1743094932491,15.20324508,2003.6,2003.5,7.28343]
[1743094933681,0.00749532,2003.8,2003.7,0.99833]
[1743094933895,0.00749532,2003.8,2003.7,4.20613]
[1743094934190,3.2078,2004.5,2003.7,9.4928]
[1743094934391,3.2078,2004.5,2004.4,0.99798]
[1743094935386,0.00487138,2004.7,2004.6,0.99786]
[1743094936888,3.2078,2005.1,2004.6,3.785]
[1743094937090,4.90022,2005.4,2004.7,3.2078]
[1743094937284,0.99753,2005.3,2005.1,0.9976]
[1743094937986,0.99756,2005.3,2005.1,0.99762]
[1743094938888,3.2078,2005.4,2005.0,0.00749532]
[1743094939100,0.99763,2005.1,2005.0,0.00749532]
[1743094939700,0.99762,2005.2,2005.0,0.00749532]
[1743094939990,0.99762,2005.2,2005.0,1.00517532]
[1743094939991,0.99761,2005.2,2005.0,1.00517532]
[1743094940496,0.99763,2005.1,2005.0,0.00749532]
[1743094940685,3.2078,2005.4,2005.1,0.99763]
[1743094940686,0.99756,2005.3,2005.1,0.99763]
[1743094940882,0.99758,2005.2,2005.0,1.00514532]
[1743094941294,3.2078,2005.4,2005.0,0.00749532]
[1743094941295,0.99763,2005.1,2005.0,0.00749532]
[1743094941493,0.99761,2005.2,2005.0,1.00517532]
[1743094941885,1.3324,2005.1,2005.0,1.00517532]
[1743094942197,2.33003,2005.1,2005.0,0.00749532]
[1743094942397,1.3324,2005.1,2005.0,1.00517532]
[1743094942691,2.33003,2005.1,2005.0,0.00749532]
[1743094942889,1.3324,2005.1,2005.0,1.00517532]
[1743094943089,2.33003,2005.1,2005.0,0.00749532]
[1743094944687,1.3324,2005.1,2005.0,1.00517532]
[1743094944890,1.3324,2005.1,2005.0,0.00749532]
[1743094945292,2.33003,2005.1,2005.0,0.00749532]
[1743094945793,5.53783,2005.1,2005.0,0.00749532]
[1743094946497,5.53783,2005.1,2004.6,0.99786]
[1743094946498,4.5402,2005.1,2004.6,0.99786]
[1743094946697,0.99783,2004.7,2004.6,0.99786]
[1743094946899,7.03434,2005.1,2004.6,0.99786]
[1743094947097,0.99783,2004.7,2004.6,0.99786]
[1743094947300,0.99793,2004.5,2004.4,1.3396]
[1743094947491,0.99793,2004.5,2004.4,2.33758]
[1743094947692,0.99803,2004.3,2004.2,1.00555532]
[1743094947894,0.99801,2004.4,2004.2,0.00749532]
[1743094948193,0.99801,2004.4,2004.3,0.99803]
[1743094948395,3.2078,2004.5,2004.4,0.99798]
[1743094949393,3.2078,2004.5,2004.2,1.31239532]
[1743094949597,0.99803,2004.3,2004.2,0.00749532]
[1743094949797,0.99803,2004.3,2004.2,1.00553532]
[1743094950206,0.99803,2004.3,2004.2,0.00749532]
[1743094950399,0.99803,2004.3,2004.2,1.00557532]
[1743094951299,0.99803,2004.3,2004.2,0.00749532]
[1743094952495,0.99823,2003.9,2003.8,3.2078]
[1743094952694,5.70317,2004.1,2003.6,3.785]
[1743094952904,1.3737,2003.8,2003.7,0.99833]
[1743094953300,2.37199,2003.8,2003.7,0.99833]
[1743094954006,1.3737,2003.8,2003.7,0.99833]
[1743094954807,0.99838,2003.6,2003.5,0.00749532]
[1743094955302,0.99853,2003.3,2003.2,3.785]
[1743094955500,0.99856,2003.3,2003.2,0.99857]
[1743094956404,3.2078,2003.4,2003.0,5.9699]
[1743094956608,0.99857,2003.3,2003.2,0.99856]
[1743094956811,3.2078,2003.4,2003.0,7.07574532]
[1743094957004,0.99855,2003.3,2003.2,0.99856]
[1743094957210,0.99858,2003.2,2003.1,0.99859]
[1743094957507,5.704,2003.4,2003.0,1.37129532]
[1743094957698,0.99862,2003.2,2003.1,0.9986]
[1743094958304,0.9986,2003.2,2003.1,0.99861]
[1743094959209,0.99863,2003.1,2003.0,0.00749532]
[1743094959512,5.53113,2003.1,2003.0,0.00749532]
[1743094960011,2.49677,2003.0,2002.5,2.1257]
[1743094960200,0.99881,2002.8,2002.5,2.1257]
[1743094960509,0.99888,2002.6,2002.5,2.1257]
[1743094960911,1.3643,2002.7,2002.6,0.99888]
[1743094961502,2.36316,2002.7,2002.5,3.12459]
[1743094961705,2.36316,2002.7,2002.6,0.99888]
[1743094962016,2.36316,2002.7,2002.5,1.68279]
[1743094962205,0.99893,2002.5,2002.4,4.44449532]
[1743094962406,0.99893,2002.5,2002.4,0.00749532]
[1743094962606,4.20673,2002.5,2002.4,0.00749532]
[1743094965111,4.20673,2002.5,2002.4,1.00647532]
[1743094965415,4.20673,2002.5,2002.4,0.00749532]
[1743094965711,4.20673,2002.5,2002.4,1.00647532]
[1743094965916,2.023,2002.7,2002.4,1.00647532]
[1743094966111,1.3643,2002.7,2002.5,0.99892]
[1743094966318,0.99891,2002.6,2002.4,2.43783532]
[1743094966509,2.33943,2002.5,2002.4,0.00749532]
[1743094967219,5.54723,2002.5,2002.4,0.00749532]
[1743094968812,5.54723,2002.5,2002.4,1.00647532]
[1743094969311,5.54723,2002.5,2002.4,0.00749532]
[1743094969512,0.99908,2002.2,2002.1,3.785]
[1743094969717,0.99908,2002.2,2002.1,4.78413]
[1743094969917,3.2078,2002.2,2002.1,4.78413]
[1743094970117,0.99905,2002.3,2002.2,0.99903]
[1743094971113,0.99913,2002.1,2002.0,0.00749532]